fUSD/lending_fUSD_20240724
["ID","MTS","AMOUNT","RATE_DAILY","PERIOD"]
[333062081,1721802634160,-169.70440755,0.00010828,2]
[333062082,1721802634169,-11767.73441851,0.0001088,2]
[333062083,1721802634182,-10267.24643384,0.0001088,2]
[333062088,1721802638116,-1309.36905882,0.000106,2]
[333062089,1721802638127,-689.05821815,0.000106,2]
[333062090,1721802638138,-3209.94494954,0.000106,2]
[333062091,1721802638266,-701.89106013,0.000106,2]
[333062092,1721802638277,-720.62291816,0.000106,2]
[333062093,1721802638290,-1315.94695395,0.000106,2]
[333062094,1721802638301,-2053.16684125,0.000106,2]
[333062095,1721802638311,-10844.72885209,0.0001088,2]
[333062096,1721802638321,-231.54765948,0.0001088,2]
[333062097,1721802638330,-420.0,0.00010885,2]
[333062098,1721802638339,-4182.0,0.0001089,2]
[333062099,1721802638351,-6614.6024,0.000109,2]
[333062100,1721802638360,-1000.0,0.000109,2]
[333062101,1721802638369,-5453.95374718,0.000109,2]
[333062102,1721802638380,-726.22550044,0.000109,2]
[333062103,1721802638391,-290.95999964,0.000109,2]
[333062104,1721802638476,-3953.53743651,0.000106,2]
[333062105,1721802638485,-875.20321937,0.000109,2]
[333062106,1721802638496,-2400.0,0.000109,2]
[333062149,1721802639911,-253.65753337,0.000109,2]
[333062150,1721802639920,-335.29329163,0.000109,2]
[333062151,1721802640133,-8.45110837,0.000109,2]
[333062152,1721802640143,-454.8503,0.000109,2]
[333062153,1721802640152,-182.02421399,0.000109,2]
[333062154,1721802640162,-415.53938311,0.000109,2]
[333062155,1721802640173,-417.08878634,0.000109,2]
[333062156,1721802640182,-832.62816944,0.000109,2]
[333062157,1721802640192,-500.0,0.00010912,2]
[333062158,1721802640201,-400.0,0.0001093,2]
[333062159,1721802640210,-200.0,0.00010959,2]
[333062160,1721802640220,-1500.0,0.00010959,5]
[333062161,1721802640229,-250.0,0.00010959,2]
[333062162,1721802640238,-278.67576326,0.00010997,2]
[333062163,1721802640247,-1928.5642467,0.00010998,2]
[333062164,1721802640257,-948.9363456,0.00010998,2]
[333062165,1721802640266,-18914.7446885,0.00010998,2]
[333062166,1721802640276,-389.36860714,0.00010999,2]
[333062167,1721802640285,-511.0,0.00011,2]
[333062168,1721802640295,-10476.66,0.00011,2]
[333062169,1721802640304,-1000.0,0.00011,2]
[333062170,1721802640313,-1000.0,0.00011,2]
[333062171,1721802640323,-1000.0,0.00011,2]
[333062172,1721802640332,-1000.0,0.00011,2]
[333062173,1721802640341,-1000.0,0.00011,2]
[333062174,1721802640350,-1000.0,0.00011,2]
[333062175,1721802640359,-1000.0,0.00011,2]
[333062176,1721802640368,-1000.0,0.00011,2]
[333062177,1721802640378,-1000.0,0.00011,2]
[333062178,1721802640387,-1000.0,0.00011,2]
[333062179,1721802640396,-1000.0,0.00011,2]
[333062180,1721802640405,-1000.0,0.00011,2]
[333062181,1721802640414,-614.53852547,0.00011,2]
[333062182,1721802640423,-765820.58179021,0.00011,2]
[333062183,1721802640433,-500.57,0.00011,2]
[333062184,1721802640442,-12610913.17707934,0.00011,2]
[333062185,1721802640454,-673.67079095,0.00011,2]
[333062186,1721802640472,-328.47396994,0.00011,2]
[333062187,1721802640516,-5223.50392506,0.00011,2]
[333062189,1721802642987,-678.04746074,0.000109,2]
[333062190,1721802642996,-1737.21470432,0.00011,2]
[333062191,1721802643011,-5515.36822053,0.00011,2]
[333062196,1721802643197,-935406.73341986,0.00011,2]
[333062197,1721802643209,-489.98199999,0.00011,2]
[333062232,1721802646873,-4004.67309286,0.00011,2]
[333062233,1721802646901,-386.34527195,0.00011,2]
[333062247,1721803163825,200.03,8.219e-05,2]
[333062322,1721803832344,-855.0,9.861e-05,2]
[333062323,1721803832354,-849.70467142,9.861e-05,2]
[333062325,1721803832364,-410.01343479,9.862e-05,2]
[333062327,1721803832375,-2000.0,9.862e-05,2]
[333062328,1721803832386,-806.77598637,9.862e-05,2]
[333062329,1721803832398,-250.0,9.862e-05,2]
[333062330,1721803832410,-562.4996314,9.862e-05,2]
[333062331,1721803832430,-939.3301095,9.862e-05,2]
[333062344,1721803838173,-1552.77603794,9.862e-05,2]
[333062345,1721803838183,-300.0,9.98e-05,2]
[333062346,1721803838193,-300.0,9.98e-05,2]
[333062347,1721803838203,-1218.412073,9.981e-05,2]
[333062348,1721803838217,-3790.207927,9.981e-05,2]
[333062349,1721803838227,-200.0,0.0001001,2]
[333062350,1721803838236,-250.0,0.00010011,2]
[333062351,1721803838246,-800.0,0.00010083,2]
[333062352,1721803838256,-499.99,0.00010232,2]
[333062353,1721803838266,-200.03,0.00010479,2]
[333062354,1721803838276,-285.53,0.00010508,2]
[333062355,1721803838286,-194.2380775,0.0001078,2]
[333062356,1721803838296,-21173.56304595,0.0001089,2]
[333062357,1721803838308,-968.43695405,0.0001089,2]
[333062358,1721803838318,-4211.34758583,0.000109,2]
[333062359,1721803838330,-374.94082365,0.000109,2]
[333062360,1721803838345,-1866.24812491,0.000109,2]
[333062361,1721803838448,-541.830076,0.000109,2]
[333062362,1721803840121,-495.55389865,0.000109,2]
[333062363,1721803840213,-2510.07949096,0.000109,2]
[333062364,1721803840223,-1000.0,0.000109,2]
[333062365,1721803840233,-312.5056,0.000109,2]
[333062366,1721803840242,-182.77659627,0.000109,2]
[333062367,1721803840251,-150.99,0.000109,2]
[333062368,1721803840261,-220.48,0.00010904,3]
[333062369,1721803840272,-500.0,0.00010912,2]
[333062370,1721803840282,-200.0,0.00010959,2]
[333062371,1721803840292,-250.0,0.00010959,2]
[333062372,1721803840301,-420.0,0.00010978,2]
[333062373,1721803840311,-420.0,0.00010978,2]
[333062374,1721803840320,-1122.02426798,0.00010997,2]
[333062375,1721803840330,-2356.6953804,0.00010998,2]
[333062376,1721803840341,-13945.3497096,0.00010998,2]
[333062377,1721803840351,-17377.830406,0.00010998,2]
[333062378,1721803840360,-1000.0,0.00011,2]
[333062379,1721803840370,-20465.03643044,0.00011,2]
[333062380,1721803840382,-583.2607277,0.00011,2]
[333062381,1721803840394,-1673.09677541,0.00011,2]
[333062382,1721803840405,-1197.8095201,0.00011,2]
[333062383,1721803840417,-666.1095711,0.00011,2]
[333062384,1721803840441,-1751.0,0.00011,2]
[333062385,1721803840453,-802.19200158,0.00011,2]
[333062386,1721803840468,-1282.73626016,0.00011,2]
[333062387,1721803840481,-6773.5,0.00011,2]
[333062388,1721803840492,-1226.66149548,0.00011,2]
[333062390,1721803840513,-1978.83,0.00011,2]
[333062392,1721803840524,-6584.77830081,0.00011,2]
[333062394,1721803840536,-4547.08758781,0.00011,2]
[333062396,1721803840547,-3604.54927796,0.00011,2]
[333062398,1721803840559,-55545.00000004,0.00011,2]
[333062614,1721803843316,-1496.0,0.00011,2]
[333062615,1721803843465,-2790.39273197,0.00011,2]
[333062616,1721803843477,-513.18500005,0.00011,2]
[333062617,1721803843501,-16130.6152453,0.00011,2]
[333062618,1721803843534,-3014.4812238,0.00011,2]
[333062642,1721803923037,200.99,8.286e-05,2]
[333062643,1721804002770,500.0,8.22e-05,2]
[333062645,1721804471826,190.94,8.219e-05,2]
[333062674,1721805032239,-901.5665,9.862e-05,2]
[333062676,1721805032249,-300.0,9.961e-05,2]
[333062678,1721805032258,-300.0,9.961e-05,2]
[333062680,1721805032267,-947.3593045,9.962e-05,2]
[333062682,1721805032276,-719.4241955,0.0001,10]
[333062684,1721805032313,-280.5758045,0.0001,10]
[333062685,1721805032323,-1000.0,0.00010069,2]
[333062686,1721805032332,-171.68,0.00010084,2]
[333062687,1721805032341,-250.0,0.00010101,2]
[333062688,1721805032350,-190.94,0.0001048,2]
[333062689,1721805032359,-194.2380775,0.0001078,2]
[333062690,1721805032368,-150.0,0.00010852,2]
[333062691,1721805032378,-550.0,0.00010853,2]
[333062692,1721805032387,-477.08553035,0.00010853,2]
[333062693,1721805032630,-1517.91446965,0.00010853,2]
[333062694,1721805032639,-3284.0,0.00010853,2]
[333062695,1721805032648,-150.0,0.00010853,2]
[333062696,1721805032657,-203.24,0.00010853,2]
[333062697,1721805032666,-3282.094,0.00010853,2]
[333062698,1721805032675,-5122.0,0.00010853,2]
[333062699,1721805032684,-749.93,0.00010853,2]
[333062700,1721805032693,-38362.0,0.00010853,2]
[333062701,1721805032702,-674.04080023,0.0001089,2]
[333062702,1721805032711,-10000.0,0.000109,2]
[333062703,1721805032720,-150.14900992,0.000109,2]
[333062704,1721805032730,-420.0,0.00010957,2]
[333062705,1721805032739,-420.0,0.00010957,2]
[333062706,1721805032748,-200.0,0.00010959,2]
[333062707,1721805032757,-150.0,0.00010959,2]
[333062708,1721805032767,-1053.52,0.00010959,2]
[333062709,1721805032775,-250.0,0.00010959,2]
[333062710,1721805032784,-565.1117202,0.0001099,3]
[333062711,1721805032797,-9839.97999288,0.0001099,3]
[333062712,1721805032808,-2472.60570829,0.0001099,3]
[333062713,1721805033024,-1601.38575,0.0001099,3]
[333062729,1721805038309,-298.41728368,0.00010853,2]
[333062730,1721805038320,-272.6271766,0.00010853,2]
[333062733,1721805038406,-502.95553972,0.00010853,2]
[333062734,1721805038415,-4134.48119893,0.0001099,3]
[333062735,1721805038430,-561.95852037,0.0001099,3]
[333062736,1721805038444,-1825.11559147,0.0001099,3]
[333062737,1721805038496,-7544.50302701,0.0001099,3]
[333062738,1721805038583,-451.95508626,0.0001099,3]
[333062739,1721805038595,-23500.03587207,0.0001099,3]
[333062740,1721805038605,-2661.3511365,0.0001099,3]
[333062741,1721805038617,-9992.04484842,0.0001099,3]
[333062742,1721805038667,-6430.39699736,0.0001099,3]
[333062743,1721805038678,-6904.82972179,0.0001099,3]
[333062880,1721805040413,-85453.16243365,0.0001099,3]
[333062899,1721805040501,-526.45,0.0001099,3]
[333062902,1721805040512,-924.04341671,0.0001099,3]
[333062917,1721805040588,-5436.26185265,0.0001099,3]
[333062926,1721805040683,-94876.4804946,0.0001099,3]
[333062927,1721805040694,-640.98643833,0.0001099,3]
[333062928,1721805040775,-73441.65997644,0.0001099,3]
[333062953,1721805043777,-332.06525581,0.0001099,3]
[333062954,1721805043789,-2792.91399718,0.0001099,3]
[333062994,1721805046449,-9999.606,0.0001099,3]
[333062996,1721805046460,-62918.04536026,0.0001099,3]
[333063037,1721805046888,-491.41023895,0.0001099,3]
[333063039,1721805046899,-1002.66863856,0.0001099,3]
[333063040,1721805046911,-293.423996,0.0001099,3]
[333063041,1721805046922,-63634.1887,0.0001099,3]
[333063042,1721805046936,-27444.66588,0.0001099,3]
[333063043,1721805046947,-520.65104284,0.0001099,3]
[333063044,1721805046958,-4868.85463367,0.0001099,3]
[333063045,1721805046969,-12458.88266596,0.0001099,3]
[333063056,1721805150957,171.84,8.219e-05,2]
[333063057,1721805212662,500.0,8.153e-05,2]
[333063111,1721805848611,163.24,8.219e-05,2]
[333063169,1721806232934,-199.8624425,0.0001,2]
[333063170,1721806232945,-200.0,0.0001,2]
[333063171,1721806232954,-800.0,0.00010047,2]
[333063172,1721806232963,-200.0,0.00010073,2]
[333063173,1721806232973,-163.24,0.0001048,2]
[333063174,1721806232982,-242.7045,0.0001079,2]
[333063175,1721806232992,-300.0,0.00010889,2]
[333063176,1721806233002,-150.0,0.00010889,2]
[333063177,1721806233011,-205.28080536,0.00010889,2]
[333063178,1721806233022,-642.3977412,0.00010889,2]
[333063179,1721806233034,-161.34473591,0.00010889,2]
[333063180,1721806233043,-273.90957045,0.0001089,2]
[333063181,1721806233052,-281.1116,0.0001089,2]
[333063182,1721806233061,-1503.63409244,0.0001089,2]
[333063183,1721806233072,-578.5596183,0.0001089,2]
[333063184,1721806233084,-2322.71635066,0.0001089,2]
[333063185,1721806233099,-956.69375819,0.0001089,2]
[333063186,1721806233110,-678.69156372,0.0001089,2]
[333063187,1721806233121,-2289.26786308,0.0001089,2]
[333063188,1721806233132,-158479.10215361,0.0001089,2]
[333063189,1721806233141,-530.21131214,0.0001089,2]
[333063190,1721806233151,-530.21131215,0.0001089,2]
[333063191,1721806233160,-10000.0,0.000109,2]
[333063192,1721806233170,-1547.2459677,0.000109,2]
[333063193,1721806233179,-222.48,0.00010904,3]
[333063194,1721806233188,-200.0,0.00010959,2]
[333063195,1721806233197,-574.18,0.00010959,2]
[333063196,1721806233207,-250.0,0.00010959,2]
[333063197,1721806233216,-501.7,0.00010959,2]
[333063198,1721806233226,-3000.0,0.00010959,2]
[333063199,1721806233235,-222.41050859,0.00010987,2]
[333063200,1721806233245,-519.0,0.0001099,2]
[333063201,1721806233255,-252308.73958796,0.0001099,3]
[333063202,1721806233291,-1033.7,0.0001099,3]
[333063203,1721806233303,-1235.44070968,0.0001099,3]
[333063204,1721806233337,-2670.35134403,0.0001099,3]
[333063205,1721806233349,-4866.61354802,0.0001099,3]
[333063211,1721806238804,-730.4022,0.0001099,3]
[333063212,1721806238900,-1035.21995811,0.0001099,3]
[333063213,1721806239161,-1767.65307,0.0001099,3]
[333063214,1721806239172,-3761.89592986,0.0001099,3]
[333063215,1721806239183,-2823.69065656,0.0001099,3]
[333063216,1721806239195,-1200.0,0.0001099,3]
[333063217,1721806239232,-301.11415239,0.0001099,3]
[333063218,1721806239243,-1786.08669,0.0001099,3]
[333063219,1721806239259,-70241.64892783,0.0001099,3]
[333063224,1721806239659,-660.81917,0.0001099,3]
[333063225,1721806239671,-1748.56626615,0.0001099,3]
[333063226,1721806239682,-1120.0285415,0.0001099,3]
[333063227,1721806239718,-3527.75465539,0.0001099,3]
[333063228,1721806239789,-5427.19204843,0.0001099,3]
[333063229,1721806239966,-27289.38432424,0.0001099,3]
[333063230,1721806239976,-3210.65,0.0001099,3]
[333063244,1721806243844,-71838.17635719,0.0001099,3]
[333063247,1721806243857,-1175.26064,0.0001099,3]
[333063250,1721806243868,-946.16994413,0.0001099,3]
[333063253,1721806243880,-1160.02723563,0.0001099,3]
[333063256,1721806243891,-775.0,0.0001099,3]
[333063258,1721806243903,-515.01954144,0.0001099,3]
[333063259,1721806243915,-2698.12,0.0001099,3]
[333063261,1721806243926,-692.45258626,0.0001099,3]
[333063263,1721806243938,-701.666667,0.0001099,3]
[333063265,1721806243954,-5296.76582824,0.0001099,3]
[333063267,1721806243966,-1006.62630079,0.0001099,3]
[333063269,1721806243978,-352.72799642,0.0001099,3]
[333063272,1721806244016,-503.82758663,0.0001099,3]
[333063274,1721806244029,-210659.70333952,0.0001099,3]
[333063276,1721806244039,-200725.6999405,0.0001099,2]
[333063277,1721806244051,-412.52788687,0.0001099,2]
[333063279,1721806244061,-300.31921246,0.0001099,2]
[333063280,1721806244070,-1779.28406872,0.00010997,2]
[333063281,1721806244080,-194.68430357,0.00010999,2]
[333063282,1721806244091,-154.89292255,0.00010999,2]
[333063283,1721806244100,-233811.9559285,0.00011,2]
[333063284,1721806244112,-421.401,0.00011,2]
[333063285,1721806244138,-406.07,0.00011,2]
[333063286,1721806244150,-4185.50941013,0.00011,2]
[333063287,1721806244161,-1789.29207492,0.00011,2]
[333063288,1721806244173,-268.42322915,0.00011,2]
[333063294,1721806245551,-4028.06691352,0.0001099,2]
[333063295,1721806245702,-3299.11777029,0.0001099,2]
[333063296,1721806245715,-2754.83324325,0.0001099,2]
[333063297,1721806245726,-905.72771757,0.0001099,2]
[333063298,1721806245819,-393.76878671,0.0001099,2]
[333063299,1721806245830,-2441.08068232,0.0001099,2]
[333063300,1721806245841,-3590.321202,0.0001099,2]
[333063301,1721806245852,-400.0,0.0001099,2]
[333063302,1721806245863,-1280.55912122,0.0001099,2]
[333063303,1721806247522,-2139.91841431,0.0001099,2]
[333063304,1721806247533,-618.3903605,0.0001099,2]
[333063305,1721806247545,-1976.79,0.0001099,2]
[333063306,1721806247585,-445.58480281,0.0001099,2]
[333063307,1721806247595,-9946.39437086,0.00011,2]
[333063308,1721806247607,-5989.69837893,0.00011,2]
[333063309,1721806247618,-854.0,0.00011,2]
[333063310,1721806247629,-1933.92052558,0.00011,2]
[333063311,1721806247648,-2966.77573102,0.00011,2]
[333063312,1721806247660,-582.56661355,0.00011,2]
[333063313,1721806247671,-873.74712415,0.00011,2]
[333063329,1721806412354,163.58,8.235e-05,2]
[333063330,1721806942155,155.4,8.219e-05,2]
[333063365,1721807431766,-166.6161,9.254e-05,2]
[333063366,1721807431776,-166.6161,9.314e-05,2]
[333063367,1721807431786,-166.6161,9.61e-05,2]
[333063368,1721807431795,-446.11,9.776e-05,2]
[333063369,1721807431804,-250.0,9.854e-05,2]
[333063370,1721807431814,-300.0,9.899e-05,2]
[333063371,1721807431824,-569.64653936,9.9e-05,2]
[333063372,1721807431836,-2274.36,9.9e-05,2]
[333063373,1721807431847,-1407.58860296,9.9e-05,2]
[333063374,1721807431859,-543.21319599,9.9e-05,2]
[333063375,1721807431875,-389.00967572,9.9e-05,2]
[333063376,1721807431886,-15843.38198597,9.9e-05,2]
[333063377,1721807431896,-500.0,0.0001,2]
[333063378,1721807431905,-150.0,0.00010027,2]
[333063379,1721807431915,-1683.9312762,0.00010066,2]
[333063380,1721807431924,-1000.0,0.00010082,2]
[333063381,1721807431933,-166.6161,0.00010174,2]
[333063382,1721807431942,-155.4,0.00010476,2]
[333063383,1721807431952,-629.9,0.00010476,2]
[333063384,1721807431961,-443.6594,0.0001079,2]
[333063385,1721807431970,-299.99,0.0001079,2]
[333063386,1721807431980,-499.99,0.0001079,2]
[333063387,1721807431990,-468.78,0.0001079,2]
[333063389,1721807431999,-150.99,0.0001079,2]
[333063391,1721807432010,-801.175,0.000108,2]
[333063393,1721807432019,-850.31,0.000108,2]
[333063395,1721807432028,-334.13,0.000108,2]
[333063397,1721807432038,-166.6161,0.00010832,2]
[333063399,1721807432047,-166.6161,0.00010849,2]
[333063401,1721807432056,-150.0,0.00010858,2]
[333063403,1721807432065,-10322.6714573,0.00010859,2]
[333063404,1721807432077,-588.74678369,0.00010859,2]
[333063405,1721807432088,-2009.17611856,0.00010859,2]
[333063406,1721807432107,-9537.10640704,0.00010859,2]
[333063407,1721807432126,-66785.0,0.00010859,2]
[333063409,1721807437645,-155.08474241,9.962e-05,2]
[333063410,1721807437657,-12057.13566014,0.00010859,2]
[333063413,1721807437671,-3826.61502,0.00010859,2]
[333063426,1721807437805,-998.52381322,0.00010859,2]
[333063427,1721807437859,-302.52178472,0.00010859,2]
[333063428,1721807437870,-343.26358931,0.00010859,2]
[333063429,1721807437913,-969.78150889,0.00010859,2]
[333063430,1721807437924,-1425.33982887,0.00010859,2]
[333063431,1721807437935,-1518.63349177,0.00010859,2]
[333063432,1721807437967,-1886.88,0.00010859,2]
[333063433,1721807437979,-2368.77101767,0.00010859,2]
[333063434,1721807437989,-22679.6721816,0.00010859,2]
[333063435,1721807438000,-13080.78809406,0.00010859,2]
[333063436,1721807438011,-14736.84362093,0.00010859,2]
[333063437,1721807438022,-407.86169906,0.00010859,2]
[333063444,1721807439647,-1388.80771302,0.00010859,2]
[333063445,1721807439663,-1300.47673645,0.00010859,2]
[333063446,1721807439674,-297.32406527,0.00010859,2]
[333063447,1721807439687,-299.46460753,0.00010859,2]
[333063448,1721807439699,-6449.13375952,0.00010859,2]
[333063449,1721807439709,-536.0769511,0.00010859,2]
[333063450,1721807439727,-2980.52193553,0.00010859,2]
[333063451,1721807439740,-1048.582763,0.00010859,2]
[333063452,1721807439755,-485.2,0.00010859,2]
[333063453,1721807439766,-359.38972543,0.00010859,2]
[333063454,1721807439777,-23533.58396632,0.00010859,2]
[333063455,1721807439787,-420.0,0.00010889,2]
[333063456,1721807439797,-10000.0,0.000109,2]
[333063457,1721807439806,-3370.7638,0.000109,2]
[333063458,1721807439816,-166.5468764,0.000109,2]
[333063459,1721807439826,-223.21652696,0.000109,2]
[333063460,1721807439837,-1031.4973118,0.000109,2]
[333063461,1721807439846,-500.0,0.00010912,2]
[333063462,1721807439855,-200.0,0.00010959,2]
[333063463,1721807439864,-250.0,0.00010959,2]
[333063464,1721807439874,-179.68,0.00010959,2]
[333063465,1721807439883,-178.94,0.00010959,2]
[333063466,1721807439892,-221.38141572,0.00010999,2]
[333063467,1721807439902,-150.0,0.00010999,2]
[333063468,1721807439912,-500.0,0.00011,3]
[333063469,1721807439921,-103584.3901028,0.00011,2]
[333063470,1721807439933,-384.644286,0.00011,2]
[333063471,1721807439944,-3366.05,0.00011,2]
[333063472,1721807439963,-181083.95742287,0.00011,2]
[333063473,1721807440023,-527.39556223,0.00011,2]
[333063474,1721807440035,-707.12336694,0.00011,2]
[333063475,1721807442691,-14061.047,0.00011,2]
[333063476,1721807442799,-500.0,0.00011,2]
[333063477,1721807442810,-277.38090288,0.00011,2]
[333063478,1721807442854,-653.347,0.00011,2]
[333063479,1721807442907,-1598.31428799,0.00011,2]
[333063480,1721807443067,-2359.80783197,0.00011,2]
[333063481,1721807443078,-44754.4874646,0.00011,2]
[333063482,1721807443090,-1113.8701207,0.00011,2]
[333063483,1721807443102,-298.93134934,0.00011,2]
[333063484,1721807443119,-669.05626928,0.00011,2]
[333063485,1721807443130,-88302.332409,0.00011,2]
[333063494,1721807445734,-715.78,0.00010959,2]
[333063495,1721807445743,-2650.32,0.00011,2]
[333063496,1721807445842,-8385.75777974,0.00011,2]
[333063499,1721807569167,157.0,9e-05,2]
[333063500,1721807572775,154.77,8.255e-05,2]
[333063501,1721807600818,500.0,8.189e-05,2]
[333063505,1721808031458,150.0,0.00014734,120]
[333063506,1721808130473,154.77,8.219e-05,2]
[333063512,1721808390780,150.0,0.00014674,120]
[333063640,1721808631869,-153.79947692,9.283e-05,2]
[333063641,1721808631880,-200.0,9.29e-05,2]
[333063642,1721808631889,-153.79947692,9.62e-05,2]
[333063643,1721808631899,-153.79947692,9.906e-05,2]
[333063644,1721808631908,-660.46156924,9.962e-05,2]
[333063645,1721808631977,-339.02343077,9.962e-05,2]
[333063646,1721808631986,-153.79947692,9.977e-05,2]
[333063647,1721808631996,-1000.0,0.0001,2]
[333063648,1721808632006,-260.41888194,0.0001,2]
[333063649,1721808632016,-300.0,0.00010587,2]
[333063650,1721808632026,-154.77,0.00010588,2]
[333063651,1721808632039,-1142.21,0.00010588,2]
[333063652,1721808632049,-499.99,0.00010588,2]
[333063653,1721808632060,-281.7,0.00010588,2]
[333063654,1721808632072,-153.79947692,0.00010608,2]
[333063655,1721808632082,-400.0,0.0001066,2]
[333063656,1721808632094,-150.0,0.00010683,2]
[333063657,1721808632106,-150.0,0.00010688,2]
[333063658,1721808632115,-1500.0,0.00010691,2]
[333063659,1721808632125,-1500.0,0.00010691,2]
[333063660,1721808632134,-150.0,0.00010693,2]
[333063661,1721808632144,-150.0,0.00010694,2]
[333063662,1721808632154,-81.00693657,0.00010697,2]
[333063663,1721808632166,-72.79254035,0.00010697,2]
[333063664,1721808632175,-150.0,0.00010698,2]
[333063665,1721808632185,-150.0,0.00010698,2]
[333063666,1721808632194,-150.0,0.00010699,2]
[333063667,1721808632204,-153.79947692,0.000107,2]
[333063668,1721808632213,-150.0,0.00010701,2]
[333063669,1721808632223,-1500.0,0.00010703,2]
[333063670,1721808632233,-150.0,0.00010706,2]
[333063671,1721808632243,-150.0,0.00010707,2]
[333063672,1721808632252,-1500.0,0.00010709,2]
[333063673,1721808632262,-150.0,0.00010712,2]
[333063674,1721808632272,-150.0,0.00010713,2]
[333063675,1721808632282,-5122.0,0.00010718,2]
[333063676,1721808632291,-38362.0,0.00010718,2]
[333063677,1721808632301,-1074.0,0.00010718,2]
[333063678,1721808632312,-150.0,0.0001072,2]
[333063679,1721808632321,-1500.0,0.0001072,2]
[333063680,1721808632330,-150.0,0.00010723,2]
[333063681,1721808632339,-150.0,0.00010725,2]
[333063682,1721808632357,-150.0,0.00010726,2]
[333063683,1721808632366,-150.0,0.0001073,2]
[333063684,1721808632375,-1500.0,0.00010731,2]
[333063685,1721808632385,-1500.0,0.00010731,2]
[333063686,1721808632395,-283.77192452,0.00010732,2]
[333063687,1721808632404,-1500.0,0.00010733,2]
[333063688,1721808632413,-150.0,0.00010734,2]
[333063689,1721808632423,-1500.0,0.00010734,2]
[333063690,1721808632433,-1500.0,0.00010735,2]
[333063691,1721808632442,-150.0,0.00010736,2]
[333063692,1721808632452,-150.0,0.00010739,2]
[333063693,1721808632461,-150.0,0.00010744,2]
[333063694,1721808632470,-1500.0,0.00010745,2]
[333063695,1721808632480,-150.0,0.00010754,2]
[333063696,1721808632489,-1500.0,0.00010755,2]
[333063697,1721808632498,-150.0,0.00010755,2]
[333063698,1721808632508,-150.0,0.00010756,2]
[333063699,1721808632517,-15646.0773,0.00010759,2]
[333063700,1721808632527,-1500.0,0.00010763,2]
[333063701,1721808632536,-150.0,0.00010764,2]
[333063702,1721808632545,-150.0,0.00010767,2]
[333063703,1721808632555,-150.0,0.00010768,2]
[333063704,1721808632564,-1500.0,0.00010769,2]
[333063705,1721808632574,-1500.0,0.00010771,2]
[333063706,1721808632583,-1500.0,0.00010775,2]
[333063707,1721808632596,-1500.0,0.00010776,2]
[333063708,1721808632607,-1500.0,0.00010777,2]
[333063709,1721808632616,-300.0,0.00010777,2]
[333063710,1721808632626,-150.0,0.00010779,2]
[333063711,1721808632635,-150.0,0.0001078,2]
[333063712,1721808632644,-516.98447335,0.00010781,2]
[333063713,1721808632653,-1500.0,0.00010782,2]
[333063714,1721808632662,-150.0,0.00010784,2]
[333063715,1721808632671,-150.0,0.00010784,2]
[333063716,1721808632681,-1500.0,0.00010785,2]
[333063717,1721808632690,-1500.0,0.00010785,2]
[333063718,1721808632700,-1500.0,0.0001079,2]
[333063719,1721808632709,-1500.0,0.0001079,2]
[333063720,1721808632718,-150.0,0.00010795,2]
[333063721,1721808632727,-150.0,0.00010795,2]
[333063722,1721808632737,-1500.0,0.00010796,2]
[333063723,1721808632746,-150.0,0.00010796,2]
[333063724,1721808632755,-150.0,0.00010797,2]
[333063725,1721808632764,-150.0,0.00010799,2]
[333063726,1721808632774,-150.0,0.00010803,2]
[333063727,1721808632783,-150.0,0.00010804,2]
[333063728,1721808632793,-150.0,0.00010808,2]
[333063729,1721808632803,-150.0,0.00010808,2]
[333063730,1721808632812,-300.0,0.0001081,2]
[333063731,1721808632821,-150.0,0.0001081,2]
[333063732,1721808632830,-150.0,0.00010811,2]